[Event "Live Chess"]
[Site "Chess.com"]
[Date "2023.05.21"]
[Round "-"]
[White "lord_cll"]
[Black "Sweet-O"]
[Result "1/2-1/2"]
[WhiteElo "1196"]
[BlackElo "1423"]
[TimeControl "300"]
[EndTime "4:25:34 PDT"]
[Termination "Game drawn by repetition"]

1. e4 {[%clk 0:04:58.3]} 1... e5 {[%clk 0:04:59.5]} 2. Nf3 {[%clk 0:04:57.1]}
2... Nf6 {[%clk 0:04:59.4]} 3. Nxe5 {[%clk 0:04:54.4]} 3... Nc6 {[%clk
0:04:58.2]} 4. Nxc6 {[%clk 0:04:48.7]} 4... dxc6 {[%clk 0:04:58.1]} 5. e5 {[%clk
0:04:40.1]} 5... Ng4 {[%clk 0:04:55.5]} 6. d4 {[%clk 0:04:34.6]} 6... c5 {[%clk
0:04:53.1]} 7. c3 {[%clk 0:04:32.1]} 7... cxd4 {[%clk 0:04:47.2]} 8. cxd4 {[%clk
0:04:28.7]} 8... c5 {[%clk 0:04:44]} 9. Be2 {[%clk 0:04:21]} 9... h5 {[%clk
0:04:40.7]} 10. h3 {[%clk 0:04:10.4]} 10... Nh6 {[%clk 0:04:34.1]} 11. Be3
{[%clk 0:04:04]} 11... Nf5 {[%clk 0:04:27.5]} 12. Nc3 {[%clk 0:03:52.6]} 12...
Nxe3 {[%clk 0:04:25.8]} 13. fxe3 {[%clk 0:03:51.4]} 13... Qh4+ {[%clk
0:04:24.9]} 14. Kd2 {[%clk 0:03:39.9]} 14... Bf5 {[%clk 0:04:17.9]} 15. Bb5+
{[%clk 0:03:35.4]} 15... Ke7 {[%clk 0:04:10.3]} 16. Nd5+ {[%clk 0:03:28.1]}
16... Kd8 {[%clk 0:04:02.5]} 17. Qb3 {[%clk 0:02:18.5]} 17... Qf2+ {[%clk
0:03:53.5]} 18. Kc3 {[%clk 0:02:12.8]} 18... cxd4+ {[%clk 0:03:46.4]} 19. Kxd4
{[%clk 0:01:59.7]} 19... Qd2+ {[%clk 0:03:40.5]} 20. Bd3 {[%clk 0:01:55.3]}
20... Qxd3+ {[%clk 0:03:35.7]} 21. Qxd3 {[%clk 0:01:52.1]} 21... Bxd3 {[%clk
0:03:35.6]} 22. Kxd3 {[%clk 0:01:51.2]} 22... Rc8 {[%clk 0:03:11.7]} 23. Rac1
{[%clk 0:01:46.7]} 23... Rxc1 {[%clk 0:03:09.8]} 24. Rxc1 {[%clk 0:01:44.9]}
24... Be7 {[%clk 0:03:02.2]} 25. Nxe7 {[%clk 0:01:41.8]} 25... Kxe7 {[%clk
0:03:00.9]} 26. Rc7+ {[%clk 0:01:40.2]} 26... Ke6 {[%clk 0:02:59.9]} 27. Rxb7
{[%clk 0:01:38.5]} 27... Rd8+ {[%clk 0:02:58.3]} 28. Ke4 {[%clk 0:01:36]} 28...
f6 {[%clk 0:02:54.9]} 29. Rxg7 {[%clk 0:01:25.1]} 29... fxe5 {[%clk 0:02:46.8]}
30. Rxa7 {[%clk 0:01:19]} 30... Rd2 {[%clk 0:02:45.6]} 31. g4 {[%clk 0:01:13.5]}
31... hxg4 {[%clk 0:02:37.6]} 32. hxg4 {[%clk 0:01:12.2]} 32... Rg2 {[%clk
0:02:36.8]} 33. Ra6+ {[%clk 0:01:07.1]} 33... Ke7 {[%clk 0:02:33.5]} 34. Kf3
{[%clk 0:01:01.2]} 34... Rxb2 {[%clk 0:02:31]} 35. g5 {[%clk 0:00:55.4]} 35...
Rb8 {[%clk 0:02:26.2]} 36. Ra5 {[%clk 0:00:50.4]} 36... Ke6 {[%clk 0:02:24.2]}
37. Ke4 {[%clk 0:00:47.6]} 37... Rg8 {[%clk 0:02:21.9]} 38. Rxe5+ {[%clk
0:00:45.7]} 38... Kd6 {[%clk 0:02:20.7]} 39. Rf5 {[%clk 0:00:40.2]} 39... Ra8
{[%clk 0:02:16.6]} 40. g6 {[%clk 0:00:23.4]} 40... Rxa2 {[%clk 0:02:09.2]} 41.
g7 {[%clk 0:00:19.2]} 41... Rg2 {[%clk 0:02:07.6]} 42. Rf7 {[%clk 0:00:15.9]}
42... Ke6 {[%clk 0:02:02]} 43. Ra7 {[%clk 0:00:13.8]} 43... Rg4+ {[%clk
0:01:55.2]} 44. Kf3 {[%clk 0:00:12.3]} 44... Rg6 {[%clk 0:01:50.5]} 45. Ra6+
{[%clk 0:00:10.8]} 45... Kf7 {[%clk 0:01:49]} 46. Rxg6 {[%clk 0:00:10.1]} 46...
Kxg6 {[%clk 0:01:48.9]} 47. g8=Q+ {[%clk 0:00:08.2]} 47... Kf6 {[%clk
0:01:46.8]} 48. Qh8+ {[%clk 0:00:06.7]} 48... Ke7 {[%clk 0:01:46.7]} 49. Kf4
{[%clk 0:00:05.7]} 49... Kd6 {[%clk 0:01:45.8]} 50. Qh5 {[%clk 0:00:04.9]} 50...
Kc6 {[%clk 0:01:44.7]} 51. Ke4 {[%clk 0:00:04.4]} 51... Kd7 {[%clk 0:01:43.9]}
52. Kd4 {[%clk 0:00:04.3]} 52... Ke6 {[%clk 0:01:42.9]} 53. Ke4 {[%clk
0:00:01.2]} 53... Kd6 {[%clk 0:01:41.4]} 54. Kd4 {[%clk 0:00:01.1]} 54... Ke6
{[%clk 0:01:40.4]} 55. Kc4 {[%clk 0:00:01]} 55... Kf6 {[%clk 0:01:39.1]} 56. Kd4
{[%clk 0:00:00.9]} 56... Ke6 {[%clk 0:01:38.2]} 1/2-1/2

[Event "Live Chess"]
[Site "Chess.com"]
[Date "2023.05.21"]
[Round "-"]
[White "KeithArkell"]
[Black "MarkLim1"]
[Result "1-0"]
[WhiteElo "2503"]
[BlackElo "1697"]
[TimeControl "300"]
[EndTime "4:25:34 PDT"]
[Termination "KeithArkell won by resignation"]

1. d4 {[%clk 0:04:58.9]} 1... Nf6 {[%clk 0:04:59]} 2. Nf3 {[%clk 0:04:58.2]}
2... e6 {[%clk 0:04:58.3]} 3. c4 {[%clk 0:04:57.6]} 3... d5 {[%clk 0:04:57.4]}
4. cxd5 {[%clk 0:04:56.7]} 4... exd5 {[%clk 0:04:56.4]} 5. Nc3 {[%clk
0:04:56.1]} 5... c6 {[%clk 0:04:55.4]} 6. Qc2 {[%clk 0:04:54.8]} 6... g6 {[%clk
0:04:44.7]} 7. Bg5 {[%clk 0:04:53.2]} 7... Be7 {[%clk 0:04:42.6]} 8. e3 {[%clk
0:04:52.1]} 8... Be6 {[%clk 0:04:41.2]} 9. Bxf6 {[%clk 0:04:44.9]} 9... Bxf6
{[%clk 0:04:40.1]} 10. b4 {[%clk 0:04:44.3]} 10... a6 {[%clk 0:04:38]} 11. a4
{[%clk 0:04:42.8]} 11... Nd7 {[%clk 0:04:37]} 12. Be2 {[%clk 0:04:40.3]} 12...
O-O {[%clk 0:04:35.5]} 13. O-O {[%clk 0:04:39]} 13... Be7 {[%clk 0:04:30.7]} 14.
Rab1 {[%clk 0:04:37.4]} 14... Bd6 {[%clk 0:04:28.9]} 15. h3 {[%clk 0:04:36.4]}
15... Qe7 {[%clk 0:04:22.5]} 16. b5 {[%clk 0:04:30.8]} 16... axb5 {[%clk
0:04:21.2]} 17. axb5 {[%clk 0:04:30]} 17... c5 {[%clk 0:04:19.2]} 18. dxc5
{[%clk 0:04:29]} 18... Bxc5 {[%clk 0:04:12.4]} 19. Qd2 {[%clk 0:04:26.9]} 19...
Nf6 {[%clk 0:04:09.1]} 20. Nd4 {[%clk 0:04:25.1]} 20... Bxd4 {[%clk 0:03:44.9]}
21. Qxd4 {[%clk 0:04:23.2]} 21... Rfc8 {[%clk 0:03:37.6]} 22. Rfc1 {[%clk
0:04:19.8]} 22... Ra3 {[%clk 0:03:28.4]} 23. Bf3 {[%clk 0:03:58.5]} 23... Qd7
{[%clk 0:03:24.1]} 24. Qxf6 {[%clk 0:03:56.5]} 1-0

[Event "Live Chess"]
[Site "Chess.com"]
[Date "2023.05.21"]
[Round "-"]
[White "SupremeTactician"]
[Black "JanMur7"]
[Result "1/2-1/2"]
[WhiteElo "2225"]
[BlackElo "1989"]
[TimeControl "300"]
[EndTime "4:25:42 PDT"]
[Termination "Game drawn by agreement"]

1. e4 {[%clk 0:04:59.1]} 1... e5 {[%clk 0:04:58.8]} 2. Nf3 {[%clk 0:04:58.2]}
2... Nc6 {[%clk 0:04:58.1]} 3. Nc3 {[%clk 0:04:57.9]} 3... Nf6 {[%clk
0:04:57.2]} 4. Bb5 {[%clk 0:04:57.5]} 4... Nd4 {[%clk 0:04:54.6]} 5. Bc4 {[%clk
0:04:56.3]} 5... d6 {[%clk 0:04:51.5]} 6. h3 {[%clk 0:04:47.9]} 6... Be6 {[%clk
0:04:49.9]} 7. Bxe6 {[%clk 0:04:45.7]} 7... Nxe6 {[%clk 0:04:49.8]} 8. O-O
{[%clk 0:04:42.4]} 8... g6 {[%clk 0:04:46.7]} 9. d4 {[%clk 0:04:35.3]} 9... exd4
{[%clk 0:04:39.8]} 10. Nxd4 {[%clk 0:04:33.8]} 10... Nxd4 {[%clk 0:04:39.2]} 11.
Qxd4 {[%clk 0:04:33.7]} 11... Bg7 {[%clk 0:04:38.8]} 12. Bg5 {[%clk 0:04:27.9]}
12... O-O {[%clk 0:04:36.8]} 13. Rad1 {[%clk 0:04:25.2]} 13... h6 {[%clk
0:04:33.8]} 14. Bxf6 {[%clk 0:04:21.1]} 14... Qxf6 {[%clk 0:04:26.3]} 15. Qxf6
{[%clk 0:04:11]} 15... Bxf6 {[%clk 0:04:26.2]} 16. Nd5 {[%clk 0:04:10.9]} 16...
Bxb2 {[%clk 0:04:24.5]} 17. Rb1 {[%clk 0:04:10.6]} 17... Bg7 {[%clk 0:04:21.6]}
18. Rxb7 {[%clk 0:04:09.9]} 18... c6 {[%clk 0:04:17.6]} 19. Ne7+ {[%clk
0:04:08.8]} 19... Kh7 {[%clk 0:04:17.1]} 20. Nxc6 {[%clk 0:03:59]} 20... Rfc8
{[%clk 0:04:15.3]} 21. Nxa7 {[%clk 0:03:49.4]} 21... Rxc2 {[%clk 0:04:14.1]} 22.
Rxf7 {[%clk 0:03:48.4]} 22... Rxa2 {[%clk 0:04:07.5]} 23. Nb5 {[%clk 0:03:46.8]}
23... Rf8 {[%clk 0:04:03.6]} 24. Nxd6 {[%clk 0:03:41.5]} 24... Rxf7 {[%clk
0:03:56.8]} 25. Nxf7 {[%clk 0:03:41.4]} 25... Re2 {[%clk 0:03:55.4]} 26. Nd6
{[%clk 0:03:11.5]} 26... Be5 {[%clk 0:03:49.8]} 27. Nc4 {[%clk 0:03:10.2]} 27...
Rxe4 {[%clk 0:03:48]} 28. Nxe5 {[%clk 0:03:09.6]} 28... Rxe5 {[%clk 0:03:47.9]}
29. g3 {[%clk 0:03:09.4]} 29... h5 {[%clk 0:03:46.5]} 30. Kg2 {[%clk 0:03:08.7]}
30... Re7 {[%clk 0:03:45.5]} 31. Rd1 {[%clk 0:03:07.8]} 31... Kg7 {[%clk
0:03:44.6]} 32. Rd6 {[%clk 0:03:06.1]} 32... Rf7 {[%clk 0:03:43.9]} 33. Re6
{[%clk 0:03:02.3]} 33... Ra7 {[%clk 0:03:43.2]} 34. Rc6 {[%clk 0:03:01.3]} 34...
Rf7 {[%clk 0:03:42.2]} 35. f4 {[%clk 0:02:53.8]} 35... Ra7 {[%clk 0:03:40.2]}
36. Rc3 {[%clk 0:02:52.7]} 36... Ra2+ {[%clk 0:03:39.2]} 37. Kf3 {[%clk
0:02:52.1]} 37... Ra7 {[%clk 0:03:39.1]} 38. g4 {[%clk 0:02:51]} 38... hxg4+
{[%clk 0:03:37.1]} 39. hxg4 {[%clk 0:02:50.2]} 39... Rf7 {[%clk 0:03:35.5]} 40.
g5 {[%clk 0:02:39.2]} 40... Ra7 {[%clk 0:03:33.5]} 41. Kg4 {[%clk 0:02:37.7]}
41... Rb7 {[%clk 0:03:32.3]} 42. Rc4 {[%clk 0:02:31.2]} 42... Ra7 {[%clk
0:03:30.6]} 43. f5 {[%clk 0:02:29.7]} 43... gxf5+ {[%clk 0:03:29.3]} 44. Kxf5
{[%clk 0:02:29.6]} 44... Ra6 {[%clk 0:03:25.6]} 45. Rc7+ {[%clk 0:02:27.3]}
45... Kg8 {[%clk 0:03:24]} 46. g6 {[%clk 0:02:23.1]} 46... Ra1 {[%clk
0:03:20.3]} 47. Rc8+ {[%clk 0:02:19.8]} 47... Kg7 {[%clk 0:03:19.3]} 48. Rc7+
{[%clk 0:02:19.7]} 48... Kg8 {[%clk 0:03:18.3]} 49. Kf6 {[%clk 0:02:19.1]} 49...
Rf1+ {[%clk 0:03:16.7]} 50. Ke7 {[%clk 0:02:18.2]} 50... Re1+ {[%clk 0:03:15.2]}
51. Kd8 {[%clk 0:02:15.9]} 51... Rg1 {[%clk 0:03:13.4]} 52. g7 {[%clk
0:02:08.8]} 1/2-1/2

[Event "Live Chess"]
[Site "Chess.com"]
[Date "2023.05.21"]
[Round "-"]
[White "Twickenham2014"]
[Black "JoRoSaR"]
[Result "1-0"]
[WhiteElo "2282"]
[BlackElo "1701"]
[TimeControl "300"]
[EndTime "4:25:46 PDT"]
[Termination "Twickenham2014 won by checkmate"]

1. e4 {[%clk 0:04:58.9]} 1... c5 {[%clk 0:04:59.2]} 2. Bc4 {[%clk 0:04:57.5]}
2... Nc6 {[%clk 0:04:58.3]} 3. Nc3 {[%clk 0:04:55.6]} 3... d6 {[%clk 0:04:57.9]}
4. f3 {[%clk 0:04:54.4]} 4... e6 {[%clk 0:04:57.5]} 5. Nge2 {[%clk 0:04:53.6]}
5... a6 {[%clk 0:04:57]} 6. a3 {[%clk 0:04:52.4]} 6... b5 {[%clk 0:04:56.4]} 7.
Ba2 {[%clk 0:04:51]} 7... Be7 {[%clk 0:04:56]} 8. d4 {[%clk 0:04:49.9]} 8...
cxd4 {[%clk 0:04:54.8]} 9. Nxd4 {[%clk 0:04:49.8]} 9... Bb7 {[%clk 0:04:53.6]}
10. Be3 {[%clk 0:04:48.6]} 10... Nf6 {[%clk 0:04:48.3]} 11. Qd2 {[%clk
0:04:46.1]} 11... O-O {[%clk 0:04:46.9]} 12. O-O-O {[%clk 0:04:45.2]} 12... e5
{[%clk 0:04:43.4]} 13. Nxc6 {[%clk 0:04:41.1]} 13... Bxc6 {[%clk 0:04:43.3]} 14.
g4 {[%clk 0:04:40.6]} 14... Qc7 {[%clk 0:04:42.1]} 15. g5 {[%clk 0:04:36.3]}
15... Nd7 {[%clk 0:04:40.2]} 16. h4 {[%clk 0:04:31.6]} 16... Rfd8 {[%clk
0:04:38.8]} 17. h5 {[%clk 0:04:30.8]} 17... Nb6 {[%clk 0:04:38.1]} 18. g6 {[%clk
0:04:29.2]} 18... hxg6 {[%clk 0:04:33]} 19. hxg6 {[%clk 0:04:27.4]} 19... Nc4
{[%clk 0:04:32.5]} 20. Rh8+ {[%clk 0:04:20.2]} 20... Kxh8 {[%clk 0:04:25.5]} 21.
Qh2+ {[%clk 0:04:20.1]} 21... Kg8 {[%clk 0:04:24.8]} 22. Qh7+ {[%clk 0:04:20]}
22... Kf8 {[%clk 0:04:24.3]} 23. Qh8# {[%clk 0:04:19.9]} 1-0

[Event "Live Chess"]
[Site "Chess.com"]
[Date "2023.05.21"]
[Round "-"]
[White "WelshTiger"]
[Black "PiotrD11"]
[Result "1-0"]
[WhiteElo "2311"]
[BlackElo "1370"]
[TimeControl "300"]
[EndTime "4:25:50 PDT"]
[Termination "WelshTiger won by resignation"]

1. e4 {[%clk 0:04:52.8]} 1... d5 {[%clk 0:04:59.9]} 2. exd5 {[%clk 0:04:51.4]}
2... Nf6 {[%clk 0:04:59.6]} 3. Bb5+ {[%clk 0:04:49.4]} 3... Bd7 {[%clk
0:04:57.5]} 4. Bc4 {[%clk 0:04:48.8]} 4... c6 {[%clk 0:04:55.6]} 5. dxc6 {[%clk
0:04:47.3]} 5... Nxc6 {[%clk 0:04:55.5]} 6. Nf3 {[%clk 0:04:43.7]} 6... e6
{[%clk 0:04:55]} 7. d3 {[%clk 0:04:43.1]} 7... Bd6 {[%clk 0:04:53.8]} 8. Nc3
{[%clk 0:04:42.4]} 8... O-O {[%clk 0:04:53.4]} 9. Ne4 {[%clk 0:04:41.7]} 9...
Nxe4 {[%clk 0:04:48.7]} 10. dxe4 {[%clk 0:04:41.6]} 10... Bc7 {[%clk 0:04:46.6]}
11. O-O {[%clk 0:04:40]} 11... Ne5 {[%clk 0:04:41.9]} 12. Nxe5 {[%clk
0:04:38.3]} 12... Bxe5 {[%clk 0:04:40.7]} 13. c3 {[%clk 0:04:37.2]} 13... a6
{[%clk 0:04:39.4]} 14. Bb3 {[%clk 0:04:35.4]} 14... Qc7 {[%clk 0:04:38.3]} 15.
g3 {[%clk 0:04:34]} 15... Rad8 {[%clk 0:04:37.1]} 16. Qe2 {[%clk 0:04:33.2]}
16... Bb5 {[%clk 0:04:36.1]} 17. c4 {[%clk 0:04:31.7]} 17... Bc6 {[%clk
0:04:31.5]} 18. Bg5 {[%clk 0:04:22.1]} 18... Rd4 {[%clk 0:04:19.1]} 19. f3
{[%clk 0:04:17.6]} 19... h6 {[%clk 0:04:16.6]} 20. Be3 {[%clk 0:04:16.2]} 20...
Rdd8 {[%clk 0:04:10.3]} 21. Rad1 {[%clk 0:04:11.8]} 21... Bf6 {[%clk 0:04:02.8]}
22. Qf2 {[%clk 0:04:04.1]} 22... Rxd1 {[%clk 0:03:54]} 23. Rxd1 {[%clk
0:04:01.8]} 23... Rd8 {[%clk 0:03:53.5]} 24. Bd4 {[%clk 0:03:48.9]} 24... Bxd4
{[%clk 0:03:45.8]} 25. Rxd4 {[%clk 0:03:47.4]} 25... e5 {[%clk 0:03:40]} 26. Rd2
{[%clk 0:03:44.1]} 26... Qa5 {[%clk 0:03:26.3]} 27. Rxd8+ {[%clk 0:03:32.7]}
27... Qxd8 {[%clk 0:03:26.2]} 28. Qe3 {[%clk 0:03:31.2]} 28... f6 {[%clk
0:03:23.3]} 29. c5+ {[%clk 0:03:29.7]} 29... Kh8 {[%clk 0:03:22.9]} 30. Kg2
{[%clk 0:03:29]} 30... a5 {[%clk 0:03:18.4]} 31. Bc2 {[%clk 0:03:16.5]} 31...
Qe7 {[%clk 0:03:04.9]} 32. a3 {[%clk 0:03:14.4]} 32... a4 {[%clk 0:03:01.8]} 33.
h4 {[%clk 0:03:10.3]} 33... Qe6 {[%clk 0:02:58.4]} 34. Qd3 {[%clk 0:03:03.2]}
34... Qe7 {[%clk 0:02:54.7]} 35. Qc4 {[%clk 0:03:00.5]} 35... Kh7 {[%clk
0:02:52.8]} 36. Bb1 {[%clk 0:02:56.6]} 36... Kg6 {[%clk 0:02:47.3]} 37. Ba2
{[%clk 0:02:54.2]} 37... Be8 {[%clk 0:02:39.2]} 38. Qe6 {[%clk 0:02:45.4]} 38...
Qxe6 {[%clk 0:02:30.8]} 39. Bxe6 {[%clk 0:02:43.3]} 39... Bc6 {[%clk 0:02:30.3]}
40. g4 {[%clk 0:02:39.4]} 40... Kh7 {[%clk 0:02:28]} 41. h5 {[%clk 0:02:38.3]}
41... g6 {[%clk 0:02:26.3]} 42. hxg6+ {[%clk 0:02:36]} 42... Kxg6 {[%clk
0:02:25.4]} 43. Bd5 {[%clk 0:02:26]} 43... Kg5 {[%clk 0:02:22.5]} 44. Kg3 {[%clk
0:02:24.4]} 44... h5 {[%clk 0:02:11.4]} 45. gxh5 {[%clk 0:02:20.5]} 45... Kxh5
{[%clk 0:02:10.6]} 46. Kf2 {[%clk 0:02:14.4]} 46... Kh4 {[%clk 0:02:05.5]} 47.
Ke3 {[%clk 0:02:11.4]} 47... Kg3 {[%clk 0:02:02.2]} 48. Bc4 {[%clk 0:02:10.5]}
48... Kh4 {[%clk 0:01:58.3]} 49. f4 {[%clk 0:02:00.9]} 49... exf4+ {[%clk
0:01:50.5]} 50. Kxf4 {[%clk 0:01:59.8]} 50... Kh5 {[%clk 0:01:47.3]} 51. e5
{[%clk 0:01:58.4]} 51... fxe5+ {[%clk 0:01:43.6]} 52. Kxe5 {[%clk 0:01:58]}
52... Kg5 {[%clk 0:01:42.6]} 53. Bd5 {[%clk 0:01:57.5]} 53... Kg6 {[%clk
0:01:40.5]} 54. Bxc6 {[%clk 0:01:56.3]} 54... bxc6 {[%clk 0:01:39.9]} 55. Kd6
{[%clk 0:01:56]} 55... Kf6 {[%clk 0:01:39.3]} 56. Kxc6 {[%clk 0:01:55.6]} 56...
Ke6 {[%clk 0:01:37.6]} 57. Kb7 {[%clk 0:01:53.9]} 57... Kd7 {[%clk 0:01:35.7]}
58. c6+ {[%clk 0:01:53.8]} 58... Kd8 {[%clk 0:01:34.2]} 59. c7+ {[%clk
0:01:53.7]} 1-0

[Event "Live Chess"]
[Site "Chess.com"]
[Date "2023.05.21"]
[Round "-"]
[White "EdenHazard8"]
[Black "LiamClery2020"]
[Result "1-0"]
[WhiteElo "1953"]
[BlackElo "2001"]
[TimeControl "300"]
[EndTime "4:25:51 PDT"]
[Termination "EdenHazard8 won by resignation"]

1. e4 {[%clk 0:04:58.3]} 1... Nf6 {[%clk 0:04:57]} 2. e5 {[%clk 0:04:57.4]} 2...
Nd5 {[%clk 0:04:56.4]} 3. d4 {[%clk 0:04:57.3]} 3... d6 {[%clk 0:04:55.7]} 4.
exd6 {[%clk 0:04:57.2]} 4... cxd6 {[%clk 0:04:55]} 5. Nf3 {[%clk 0:04:57.1]}
5... g6 {[%clk 0:04:54.1]} 6. c3 {[%clk 0:04:55.1]} 6... Bg7 {[%clk 0:04:52.9]}
7. Bd3 {[%clk 0:04:54.6]} 7... Nc6 {[%clk 0:04:52.4]} 8. O-O {[%clk 0:04:53.8]}
8... O-O {[%clk 0:04:51.9]} 9. Nbd2 {[%clk 0:04:52.6]} 9... Bg4 {[%clk
0:04:51.1]} 10. Qb3 {[%clk 0:04:50.1]} 10... Nb6 {[%clk 0:04:44.9]} 11. a4
{[%clk 0:04:49.3]} 11... Na5 {[%clk 0:04:43.1]} 12. Qb5 {[%clk 0:04:46.7]} 12...
Nc6 {[%clk 0:04:35.5]} 13. a5 {[%clk 0:04:45.4]} 13... Nd7 {[%clk 0:04:28.3]}
14. Qxb7 {[%clk 0:04:43.6]} 14... Qc8 {[%clk 0:04:27.7]} 15. Qxc8 {[%clk
0:04:37.1]} 15... Raxc8 {[%clk 0:04:27.6]} 16. b4 {[%clk 0:04:33.8]} 16... e5
{[%clk 0:04:26.1]} 17. Ne4 {[%clk 0:04:25.7]} 17... Bxf3 {[%clk 0:04:20.2]} 18.
gxf3 {[%clk 0:04:22.7]} 18... exd4 {[%clk 0:04:19]} 19. Nxd6 {[%clk 0:04:21.3]}
19... Rcd8 {[%clk 0:04:16.9]} 20. b5 {[%clk 0:04:13.6]} 20... Nce5 {[%clk
0:04:13.3]} 21. Be4 {[%clk 0:04:10.7]} 21... dxc3 {[%clk 0:04:05.8]} 22. Ba3
{[%clk 0:04:04.1]} 22... Nf6 {[%clk 0:03:58.5]} 23. Nb7 {[%clk 0:03:59.8]} 23...
Nxe4 {[%clk 0:03:52.3]} 24. fxe4 {[%clk 0:03:57.8]} 24... Rd4 {[%clk 0:03:44.7]}
25. Bxf8 {[%clk 0:03:54.8]} 25... Bxf8 {[%clk 0:03:42.9]} 26. b6 {[%clk
0:03:48.5]} 26... a6 {[%clk 0:03:38.4]} 27. Rfd1 {[%clk 0:03:42.9]} 27... Rxe4
{[%clk 0:03:35.4]} 28. Nd6 {[%clk 0:03:38.8]} 28... Rg4+ {[%clk 0:03:33.6]} 29.
Kh1 {[%clk 0:03:28.4]} 29... c2 {[%clk 0:03:31.8]} 30. Rdc1 {[%clk 0:03:24.5]}
30... Bxd6 {[%clk 0:03:28.2]} 31. Rxc2 {[%clk 0:03:20.6]} 31... Nf3 {[%clk
0:03:26.8]} 32. b7 {[%clk 0:03:17.9]} 32... Rb4 {[%clk 0:03:15.3]} 33. Rd1
{[%clk 0:03:10.8]} 33... Nd4 {[%clk 0:03:01.7]} 34. Rc8+ {[%clk 0:03:00.6]}
34... Kg7 {[%clk 0:02:59.7]} 35. Rd8 {[%clk 0:02:59]} 35... Nf5 {[%clk
0:02:51.3]} 36. R1xd6 {[%clk 0:02:50.2]} 36... Rxb7 {[%clk 0:02:36.5]} 37. Rxa6
{[%clk 0:02:48.4]} 37... Nh4 {[%clk 0:02:36.2]} 38. Rb6 {[%clk 0:02:44.5]} 38...
Rc7 {[%clk 0:02:34.3]} 39. Rd1 {[%clk 0:02:42.7]} 39... Ra7 {[%clk 0:02:30.6]}
40. a6 {[%clk 0:02:41.4]} 40... Nf5 {[%clk 0:02:28.5]} 41. Rc1 {[%clk
0:02:38.8]} 41... Nh4 {[%clk 0:02:23.8]} 42. Rcc6 {[%clk 0:02:37.1]} 42... Rd7
{[%clk 0:02:22.5]} 43. Rb1 {[%clk 0:02:34.3]} 43... Kh6 {[%clk 0:02:16.1]} 44.
Ra1 {[%clk 0:02:21.6]} 44... Ra7 {[%clk 0:02:13.2]} 45. Rb6 {[%clk 0:02:20.6]}
45... Kg5 {[%clk 0:02:11.1]} 46. Rb7 {[%clk 0:02:19.5]} 46... Ra8 {[%clk
0:02:09.9]} 47. a7 {[%clk 0:02:18.5]} 1-0

[Event "Live Chess"]
[Site "Chess.com"]
[Date "2023.05.21"]
[Round "-"]
[White "McSlash1"]
[Black "GEMdzq"]
[Result "0-1"]
[WhiteElo "2010"]
[BlackElo "2278"]
[TimeControl "300"]
[EndTime "4:25:58 PDT"]
[Termination "GEMdzq won by resignation"]

1. e4 {[%clk 0:04:59.4]} 1... d6 {[%clk 0:04:58.6]} 2. d4 {[%clk 0:04:58.5]}
2... Nf6 {[%clk 0:04:58.2]} 3. Bd3 {[%clk 0:04:58.2]} 3... g6 {[%clk 0:04:57.6]}
4. f4 {[%clk 0:04:57.7]} 4... Bg7 {[%clk 0:04:57]} 5. e5 {[%clk 0:04:57.4]} 5...
dxe5 {[%clk 0:04:53.8]} 6. fxe5 {[%clk 0:04:57.3]} 6... Nd5 {[%clk 0:04:52.5]}
7. c3 {[%clk 0:04:56.9]} 7... c5 {[%clk 0:04:48.8]} 8. Nf3 {[%clk 0:04:55.9]}
8... Nc6 {[%clk 0:04:47]} 9. O-O {[%clk 0:04:55.2]} 9... cxd4 {[%clk 0:04:45.4]}
10. cxd4 {[%clk 0:04:55.1]} 10... O-O {[%clk 0:04:42.9]} 11. Bg5 {[%clk
0:04:52.7]} 11... Qb6 {[%clk 0:04:32.5]} 12. Nc3 {[%clk 0:04:41.1]} 12... Be6
{[%clk 0:04:29.4]} 13. Be4 {[%clk 0:04:25.6]} 13... Rad8 {[%clk 0:04:15.4]} 14.
Rb1 {[%clk 0:04:20.6]} 14... h6 {[%clk 0:04:08.1]} 15. Bh4 {[%clk 0:04:18.3]}
15... Nxe5 {[%clk 0:03:48.2]} 16. Bxd5 {[%clk 0:03:58.6]} 16... Bxd5 {[%clk
0:03:38.8]} 17. Nxe5 {[%clk 0:03:50.8]} 17... Bxe5 {[%clk 0:03:35.6]} 18. Bf2
{[%clk 0:03:15.1]} 18... Bg7 {[%clk 0:03:32.3]} 19. Nxd5 {[%clk 0:03:04.9]}
19... Rxd5 {[%clk 0:03:32.2]} 20. Qd2 {[%clk 0:03:04]} 20... Rfd8 {[%clk
0:03:29.5]} 21. Rbe1 {[%clk 0:02:59.2]} 21... e5 {[%clk 0:03:26.7]} 22. Bh4
{[%clk 0:02:47]} 22... g5 {[%clk 0:03:17.3]} 23. Bg3 {[%clk 0:02:41.7]} 23...
Rxd4 {[%clk 0:03:14.4]} 24. Qf2 {[%clk 0:02:37]} 24... Rd2 {[%clk 0:03:06]} 25.
Qxb6 {[%clk 0:02:34.1]} 25... axb6 {[%clk 0:03:05.9]} 26. Bxe5 {[%clk
0:02:27.2]} 26... Bxe5 {[%clk 0:03:03.4]} 27. Rxe5 {[%clk 0:02:27.1]} 27... R8d7
{[%clk 0:02:54.8]} 28. Rb5 {[%clk 0:02:24.6]} 28... Kg7 {[%clk 0:02:51.9]} 29.
Rxb6 {[%clk 0:02:23.3]} 29... Rc2 {[%clk 0:02:41.7]} 30. Rf2 {[%clk 0:02:15.1]}
30... Rd1+ {[%clk 0:02:39.5]} 31. Rf1 {[%clk 0:02:14.2]} 31... Rdd2 {[%clk
0:02:38.8]} 32. Re1 {[%clk 0:01:59.4]} 32... Rxg2+ {[%clk 0:02:37.7]} 33. Kh1
{[%clk 0:01:58.7]} 33... Rxh2+ {[%clk 0:02:36.8]} 34. Kg1 {[%clk 0:01:58]} 34...
Rhg2+ {[%clk 0:02:33.1]} 35. Kf1 {[%clk 0:01:57]} 35... Rh2 {[%clk 0:02:27.9]}
36. Kg1 {[%clk 0:01:54.8]} 36... Rxb2 {[%clk 0:02:25.9]} 37. Rd6 {[%clk
0:01:27.4]} 37... Rhd2 {[%clk 0:02:14.8]} 0-1

[Event "Live Chess"]
[Site "Chess.com"]
[Date "2023.05.21"]
[Round "-"]
[White "CheckThis4"]
[Black "Tilbs_12"]
[Result "1-0"]
[WhiteElo "2506"]
[BlackElo "1582"]
[TimeControl "300"]
[EndTime "4:26:00 PDT"]
[Termination "CheckThis4 won by resignation"]

1. d4 {[%clk 0:04:58.4]} 1... d5 {[%clk 0:04:58.6]} 2. c4 {[%clk 0:04:52.1]}
2... c6 {[%clk 0:04:56.9]} 3. Nf3 {[%clk 0:04:49.5]} 3... Nf6 {[%clk 0:04:55.9]}
4. e3 {[%clk 0:04:47.6]} 4... Bg4 {[%clk 0:04:54]} 5. h3 {[%clk 0:04:41.6]} 5...
Bh5 {[%clk 0:04:52.5]} 6. g4 {[%clk 0:04:36.6]} 6... Bg6 {[%clk 0:04:51.3]} 7.
Ne5 {[%clk 0:04:30.7]} 7... e6 {[%clk 0:04:47]} 8. h4 {[%clk 0:04:28.7]} 8...
Bxb1 {[%clk 0:04:35.6]} 9. Rxb1 {[%clk 0:04:24.7]} 9... Nbd7 {[%clk 0:04:33.9]}
10. Nxd7 {[%clk 0:04:19.6]} 10... Qxd7 {[%clk 0:04:32.4]} 11. c5 {[%clk
0:04:15.3]} 11... e5 {[%clk 0:04:20.3]} 12. g5 {[%clk 0:04:14.6]} 12... Ng8
{[%clk 0:04:09.8]} 13. Bh3 {[%clk 0:04:13.3]} 13... Qc7 {[%clk 0:04:05.1]} 14.
b4 {[%clk 0:04:12.2]} 14... f6 {[%clk 0:03:54.4]} 15. dxe5 {[%clk 0:04:07.4]}
15... fxe5 {[%clk 0:03:44.6]} 16. e4 {[%clk 0:04:03.8]} 16... d4 {[%clk
0:03:41.3]} 17. O-O {[%clk 0:03:53.8]} 17... Ne7 {[%clk 0:03:38.6]} 18. f4
{[%clk 0:03:52.2]} 18... Rd8 {[%clk 0:03:30.5]} 19. f5 {[%clk 0:03:47.5]} 19...
Qd7 {[%clk 0:03:01.8]} 20. Qf3 {[%clk 0:03:36.3]} 20... Qc7 {[%clk 0:02:43.4]}
21. f6 {[%clk 0:03:34.4]} 21... Ng6 {[%clk 0:02:39.2]} 22. h5 {[%clk 0:03:29.3]}
22... Nf4 {[%clk 0:02:35.3]} 23. Bxf4 {[%clk 0:03:23]} 23... exf4 {[%clk
0:02:34.2]} 24. e5 {[%clk 0:03:19.4]} 24... gxf6 {[%clk 0:02:22.9]} 25. exf6
{[%clk 0:03:14.4]} 25... Kf7 {[%clk 0:02:18.5]} 26. Rbe1 {[%clk 0:03:10.2]}
26... Re8 {[%clk 0:02:05.2]} 27. Qb3+ {[%clk 0:02:59]} 1-0